bitfinex/quotes_BTCUSD_20260308
["timestamp","ask_amount","ask_price","bid_price","bid_amount"]
[1772983771930,0.00575,67160.0,67150.0,0.02956896]
[1772983772301,0.00575,67160.0,67150.0,0.03104896]
[1772983772665,0.00575,67160.0,67151.0,0.07445905]
[1772983773021,0.08019926,67160.0,67151.0,0.07445905]
[1772983773402,0.00575,67160.0,67151.0,0.07445905]
[1772983773837,0.00575,67160.0,67151.0,0.07457836]
[1772983774213,0.00541225,67160.0,67151.0,0.07457836]
[1772983775731,0.00541225,67160.0,67151.0,0.07477836]
[1772983775936,0.00541225,67160.0,67152.0,0.02956896]
[1772983776485,0.00541225,67160.0,67151.0,0.07477836]
[1772983778259,0.03080503,67159.0,67151.0,0.07477836]
[1772983779165,0.03080503,67159.0,67156.0,0.00015]
[1772983779658,0.03080503,67159.0,67151.0,0.07477836]
[1772983779958,0.03228503,67159.0,67151.0,0.07477836]
[1772983780416,0.00689225,67160.0,67151.0,0.07477836]
[1772983781615,0.00689225,67160.0,67144.0,0.07466632]
[1772983781616,0.02933456,67158.0,67144.0,0.07466632]
[1772983781964,0.02933456,67156.0,67144.0,0.07466632]
[1772983782140,0.00011916,67158.0,67144.0,0.07466632]
[1772983782345,0.00011916,67158.0,67146.0,0.02982962]
[1772983782694,0.0001594,67166.0,67154.0,0.02982962]
[1772983782815,0.0001594,67166.0,67156.0,0.12109629]
[1772983783015,1e-08,67166.0,67157.0,0.02982962]
[1772983783216,0.00148,67173.0,67160.0,0.12109629]
[1772983783459,0.0748327,67175.0,67161.0,0.02982962]
[1772983783617,0.0748327,67175.0,67162.0,0.12109629]
[1772983783618,0.0004,67175.0,67162.0,0.12109629]
[1772983783822,0.0004,67175.0,67165.0,0.02982962]
[1772983784454,0.10397877,67183.0,67166.0,0.12109629]
[1772983784697,0.00148,67179.0,67167.0,0.02982962]
[1772983785662,0.00148,67179.0,67168.0,0.10426982]
[1772983785813,0.00148,67179.0,67169.0,0.02982962]
[1772983786012,0.02933456,67177.0,67163.0,0.00148]
[1772983786594,0.07590817,67179.0,67156.0,0.00011916]
[1772983786595,0.12137855,67174.0,67156.0,0.00011916]
[1772983786790,0.07590817,67179.0,67156.0,0.07457217]
[1772983786791,0.12137855,67170.0,67156.0,0.07457217]
[1772983786990,0.02933456,67167.0,67156.0,0.07457217]
[1772983787189,0.03081456,67167.0,67156.0,0.07457217]
[1772983787663,0.07444242,67166.0,67156.0,0.07457217]
[1772983788852,0.07443418,67174.0,67158.0,0.02982962]
[1772983788853,0.02933456,67173.0,67158.0,0.02982962]
[1772983789010,0.00148,67172.0,67158.0,0.02982962]
[1772983789224,0.02933456,67171.0,67156.0,0.07457217]
[1772983789432,0.02933456,67168.0,67156.0,0.07457217]
[1772983789634,0.02933456,67168.0,67157.0,0.00148]
[1772983789831,0.10377587,67167.0,67157.0,0.00148]
[1772983790341,0.10377587,67167.0,67156.0,0.07457261]
[1772983790541,0.10377587,67167.0,67157.0,0.00148]
[1772983790961,0.10377587,67167.0,67156.0,0.07457261]
[1772983792807,0.00148,67172.0,67157.0,0.02982962]
[1772983793018,0.00148,67171.0,67159.0,0.02982962]
[1772983793220,0.07443596,67172.0,67160.0,0.02982962]
[1772983793423,0.07443596,67172.0,67161.0,0.02982962]
[1772983793583,0.07443596,67172.0,67161.0,0.12109629]
[1772983793777,0.07443596,67172.0,67163.0,0.07444575]
[1772983793966,0.07443596,67172.0,67163.0,0.10427537]
[1772983794170,0.07443596,67172.0,67164.0,0.02982962]
[1772983794787,0.07458474,67173.0,67164.0,0.02982962]
[1772983795182,0.07458468,67173.0,67164.0,0.02982962]
[1772983795391,0.02933456,67171.0,67163.0,0.07444575]
[1772983795598,0.02933456,67171.0,67162.0,0.07444685]
[1772983795995,0.07443799,67170.0,67162.0,0.07444685]
[1772983797972,0.07443799,67170.0,67160.0,0.07444907]
[1772983798109,0.10377255,67170.0,67160.0,0.07444907]
[1772983800051,0.02933456,67165.0,67151.0,0.07465849]
[1772983800233,0.02933456,67163.0,67151.0,0.07465849]
[1772983800456,0.02933456,67163.0,67151.0,0.0002]
[1772983800626,0.00148,67164.0,67147.0,0.07446347]
[1772983800627,0.12137855,67160.0,67147.0,0.07446347]
[1772983800847,0.12137855,67160.0,67140.0,0.02997962]
[1772983800848,0.12137855,67156.0,67140.0,0.00163]
[1772983801143,0.02933456,67151.0,67141.0,0.07447014]
[1772983801343,0.00011931,67165.0,67140.0,0.00015]
[1772983801344,0.02933456,67149.0,67140.0,0.00015]
[1772983801670,0.02933456,67149.0,67140.0,0.07462044]
[1772983802361,0.07446238,67148.0,67140.0,0.00015]
[1772983803451,0.07445943,67151.0,67141.0,0.11524696]
[1772983803788,0.07593943,67151.0,67142.0,0.02982962]
[1772983804148,0.12424862,67150.0,67140.0,0.00015]
[1772983804350,0.03107125,67147.0,67140.0,0.00015]
[1772983804619,0.03107125,67147.0,67137.0,0.0002]
[1772983804889,0.07446238,67148.0,67137.0,0.0002]
[1772983804890,0.07446238,67148.0,67139.0,0.0318158]
[1772983806215,0.07446238,67148.0,67140.0,0.0002]
[1772983806358,0.00148,67149.0,67140.0,0.0002]
[1772983806564,0.074462,67149.0,67140.0,0.0320158]
[1772983806786,0.074462,67149.0,67142.0,0.0318158]
[1772983807788,0.07446238,67150.0,67142.0,0.0318158]
[1772983808005,0.074462,67149.0,67143.0,0.0318158]
[1772983808410,0.03107125,67160.0,67142.0,0.07446867]
[1772983808411,0.00148,67151.0,67142.0,0.07446867]
[1772983808806,0.03107125,67155.0,67141.0,0.07446935]
[1772983809011,0.00148,67152.0,67141.0,0.07446935]
[1772983809656,0.00148,67153.0,67141.0,0.07446935]
[1772983810093,0.03290414,67154.0,67141.0,0.07446935]
[1772983810356,0.07445683,67153.0,67141.0,0.07446935]
[1772983810558,0.07445683,67153.0,67141.0,0.07594935]
[1772983810757,0.07593683,67153.0,67142.0,0.03186934]
[1772983812513,0.07593683,67153.0,67140.0,0.0002]
[1772983812766,0.11586657,67152.0,67140.0,0.0002]
[1772983812961,0.03142414,67149.0,67137.0,0.07467439]
[1772983813169,0.03142414,67147.0,67137.0,0.07467439]
[1772983813344,0.1918034,67153.0,67137.0,0.07467439]
[1772983813546,0.03142414,67152.0,67138.0,0.03186934]
[1772983813746,0.03290414,67152.0,67138.0,0.03186934]
[1772983814334,0.03290414,67152.0,67134.0,0.07447458]
[1772983814335,0.03142414,67150.0,67126.0,0.03186934]
[1772983814497,0.00148,67152.0,67109.0,0.39744314]
[1772983814498,0.11586657,67144.0,67125.0,0.07488769]
[1772983814703,0.03142414,67141.0,67125.0,1e-08]
[1772983814904,0.03142414,67137.0,67125.0,1e-08]
[1772983815062,0.11586657,67134.0,67118.0,0.001]
[1772983815411,0.11586657,67130.0,67115.0,0.07593883]
[1772983815653,0.03142414,67127.0,67115.0,0.07633696]
[1772983815870,0.00148,67126.0,67115.0,0.07633693]
[1772983816038,0.00148,67126.0,67115.0,0.00183813]
[1772983816202,0.00148,67126.0,67115.0,0.07633668]
[1772983816597,0.07448789,67125.0,67116.0,0.03186934]
[1772983816806,0.11586657,67146.0,67117.0,0.12627991]
[1772983817132,0.07446127,67149.0,67122.0,0.03186934]
[1772983817133,0.11586657,67144.0,67122.0,0.03186934]
[1772983817324,0.11586657,67142.0,67124.0,0.03186934]
[1772983817525,0.11586657,67140.0,67115.0,0.07489668]
[1772983817725,0.07446127,67149.0,67116.0,0.03334934]
[1772983817726,0.03142414,67137.0,67116.0,0.03334934]
[1772983817944,0.07446127,67149.0,67115.0,0.07489668]
[1772983817945,0.11586657,67134.0,67115.0,0.07489668]
[1772983818179,0.11734657,67133.0,67116.0,0.03186934]
[1772983818334,0.11734657,67133.0,67117.0,0.00148]
[1772983818335,0.03290414,67132.0,67117.0,0.00148]
[1772983818548,0.07448123,67131.0,67118.0,0.07449566]
[1772983818713,0.03142414,67130.0,67118.0,0.07449566]
[1772983818913,0.03142414,67130.0,67116.0,0.07449566]
[1772983819115,0.14729071,67128.0,67116.0,0.07449566]
[1772983819524,0.11586657,67128.0,67117.0,0.07449677]
[1772983819729,0.07448123,67131.0,67118.0,0.03186934]
[1772983819938,0.07448123,67131.0,67117.0,0.07449677]
[1772983819939,0.03142414,67130.0,67117.0,0.07449677]
[1772983820163,0.11586657,67130.0,67117.0,0.07449677]
[1772983820359,0.03142414,67129.0,67117.0,0.07449677]
[1772983820557,0.07448456,67128.0,67117.0,0.07449677]
[1772983822031,0.07448456,67128.0,67118.0,0.03186934]
[1772983822230,0.07448307,67130.0,67118.0,0.03186934]
[1772983822525,0.00148,67129.0,67118.0,0.03186934]
[1772983822729,0.0759638,67129.0,67119.0,0.07449455]
[1772983822894,0.00148,67128.0,67120.0,0.03186934]
[1772983823093,0.0744838,67129.0,67120.0,0.03186934]
[1772983823282,0.14729071,67128.0,67116.0,0.07469727]
[1772983823490,0.14729071,67128.0,67116.0,0.0002]
[1772983823491,0.03142414,67127.0,67116.0,0.0002]
[1772983823692,0.03142414,67127.0,67110.0,0.03186934]
[1772983823693,0.03142414,67125.0,67110.0,0.03186934]
[1772983823893,0.11586657,67123.0,67110.0,0.07450451]
[1772983824094,0.00148,67122.0,67110.0,0.07450451]
[1772983824295,0.00148,67122.0,67111.0,0.03186934]
[1772983825355,0.00148,67121.0,67113.0,0.03186934]
[1772983825559,0.00148,67121.0,67112.0,0.07450232]
[1772983825913,0.14729071,67123.0,67112.0,0.07450232]
[1772983826117,0.00148,67122.0,67112.0,0.07450232]
[1772983826820,0.0003976,67125.0,67123.0,0.00015]
[1772983827032,0.0003976,67125.0,67123.0,0.03201934]
[1772983827257,0.07596464,67128.0,67123.0,0.03201934]
[1772983827462,0.00148,67129.0,67123.0,0.10650933]
[1772983827675,0.0001392,67137.0,67124.0,0.03186934]
[1772983827881,1e-08,67139.0,67127.0,0.12627991]
[1772983828087,0.07468302,67148.0,67131.0,0.12627991]
[1772983828322,0.00148,67144.0,67133.0,0.03186934]
[1772983828721,0.07468302,67148.0,67133.0,0.03186934]
[1772983828915,0.00148,67147.0,67133.0,0.03186934]
[1772983829325,0.07446459,67146.0,67135.0,0.03186934]
[1772983829547,0.07594459,67146.0,67135.0,0.03186934]
[1772983829940,0.00022001,67148.0,67137.0,0.03186934]
[1772983830143,0.00022001,67148.0,67139.0,0.03186934]
[1772983830359,0.00022001,67148.0,67137.0,0.00148]
[1772983830360,0.0004,67150.0,67141.0,0.12627991]
[1772983830564,0.07486036,67150.0,67142.0,0.03186934]
[1772983830979,0.0004,67150.0,67142.0,0.03186934]
[1772983831215,0.0004,67150.0,67143.0,0.07446792]
[1772983831216,0.07486031,67150.0,67143.0,0.07446792]
[1772983831387,0.07486031,67150.0,67142.0,0.07446888]
[1772983832850,0.07486031,67150.0,67134.0,0.0744779]
[1772983832851,0.07486031,67150.0,67130.0,0.07448229]
[1772983833046,0.07486031,67150.0,67129.0,0.07448286]
[1772983833241,0.07486031,67150.0,67124.0,0.03186934]
[1772983833443,0.11930376,67147.0,67125.0,0.07448789]
[1772983833640,0.11930376,67143.0,67125.0,0.07448789]
[1772983833866,0.03142414,67140.0,67125.0,0.07448789]
[1772983834069,0.03142414,67138.0,67125.0,0.07448789]
[1772983834283,0.00148,67137.0,67125.0,0.07448789]
[1772983834884,0.12078376,67137.0,67124.0,0.03186934]
[1772983835083,0.11930376,67149.0,67124.0,0.10690097]
[1772983835265,0.11930376,67141.0,67125.0,0.03241279]
[1772983835466,0.07595125,67140.0,67126.0,0.07448678]
[1772983835889,0.19525501,67140.0,67126.0,0.07448678]
[1772983836123,0.11930376,67139.0,67125.0,0.10690063]
[1772983836394,0.11952062,67137.0,67125.0,0.07448784]
[1772983836953,0.11974063,67137.0,67125.0,0.07448784]
[1772983837153,0.11970063,67137.0,67125.0,0.07448784]
[1772983838156,0.07447569,67136.0,67124.0,0.07448845]
[1772983838360,0.07447569,67136.0,67125.0,0.03254337]
[1772983840748,0.07447569,67136.0,67127.0,0.03245426]
[1772983840957,0.00148,67135.0,67127.0,0.03245426]
[1772983841706,0.00148,67134.0,67127.0,0.03045426]
[1772983842840,0.07595819,67134.0,67128.0,0.07448456]
[1772983843192,0.00148,67135.0,67129.0,0.03241056]
[1772983843398,0.07447191,67140.0,67131.0,0.12201965]
[1772983843399,0.00148,67140.0,67131.0,0.12201965]
[1772983843604,0.00148,67140.0,67132.0,0.03241056]
[1772983844446,0.00148,67141.0,67132.0,0.03241056]
[1772983844678,0.19428338,67150.0,67128.0,0.07448456]
[1772983844679,0.07446127,67149.0,67133.0,0.00148]
[1772983844918,0.07594308,67148.0,67138.0,0.07447347]
[1772983845122,0.07446308,67148.0,67139.0,0.03237216]
[1772983845249,0.07594308,67148.0,67139.0,0.03237216]
[1772983846476,0.07497991,67150.0,67139.0,0.03237216]
[1772983846690,0.00022001,67144.0,67139.0,0.03237216]
[1772983846861,0.00022001,67144.0,67140.0,0.07447125]
[1772983847019,0.00022001,67144.0,67141.0,0.03246727]
[1772983847220,0.07446792,67143.0,67134.0,0.07447778]
[1772983847427,0.07446792,67143.0,67125.0,0.0002]
[1772983847428,0.07446792,67143.0,67131.0,0.07448123]
[1772983847627,0.11930376,67142.0,67131.0,0.07448123]
[1772983847829,0.11930376,67142.0,67125.0,0.0002]
[1772983848033,0.11930376,67142.0,67126.0,0.07448678]
[1772983848230,0.11930376,67142.0,67125.0,0.0002]
[1772983848662,0.11930376,67142.0,67125.0,0.07468783]
[1772983848983,0.07447014,67141.0,67125.0,0.0002]
[1772983849188,0.12078376,67140.0,67125.0,0.0002]
[1772983850706,0.11930376,67140.0,67125.0,0.0002]
[1772983850912,0.07447014,67141.0,67126.0,0.03238343]
[1772983851117,0.07447347,67138.0,67127.0,0.07448567]
[1772983851316,0.00148,67137.0,67128.0,0.03238343]
[1772983851743,0.00148,67136.0,67128.0,0.03238343]
[1772983852548,0.00148,67136.0,67125.0,0.07468567]
[1772983853397,0.0744768,67135.0,67125.0,0.0002]
[1772983855287,0.0744768,67135.0,67126.0,0.10678587]
[1772983859513,0.0744768,67135.0,67126.0,0.07448581]
[1772983859770,0.07447014,67141.0,67127.0,0.03221753]
[1772983859957,0.00148,67140.0,67127.0,0.03221753]
[1772983860765,0.07447014,67141.0,67127.0,0.03221753]
[1772983860985,0.00015,67156.0,67129.0,0.03217657]
[1772983860986,0.00022001,67153.0,67129.0,0.03217657]
[1772983861201,0.00148,67149.0,67132.0,0.12201965]
[1772983861403,0.00148,67148.0,67135.0,0.03217657]
[1772983861993,0.07446349,67147.0,67136.0,0.07447569]
[1772983862307,0.07446349,67147.0,67132.0,0.07447991]
[1772983862308,0.11930376,67146.0,67132.0,0.07447991]
[1772983862658,0.119733,67146.0,67132.0,0.07447991]
[1772983862858,0.12160854,67144.0,67130.0,0.19311878]
[1772983863075,0.12203778,67142.0,67130.0,0.19311878]
[1772983863282,0.00148,67141.0,67130.0,0.19311878]
[1772983864096,0.07447125,67140.0,67130.0,0.19311878]
[1772983865737,0.07447125,67140.0,67130.0,0.07448217]
[1772983867377,0.07447125,67140.0,67125.0,0.07468789]
[1772983867554,0.00148,67139.0,67129.0,0.12227935]
[1772983867757,0.00148,67139.0,67125.0,0.07468789]
[1772983867758,0.00148,67139.0,67130.0,0.12227935]
[1772983867957,0.00148,67139.0,67125.0,0.07468789]
[1772983867958,0.00148,67139.0,67132.0,0.03236416]
[1772983868483,0.00148,67139.0,67133.0,0.03236416]
[1772983868895,0.00148,67141.0,67133.0,0.03236416]
[1772983869069,0.00148,67141.0,67134.0,0.12227935]
[1772983869439,0.00148,67142.0,67136.0,0.07447569]
[1772983869630,0.00148,67142.0,67137.0,0.03232247]
[1772983870166,0.00022001,67144.0,67137.0,0.03232247]
[1772983871274,0.00148,67145.0,67137.0,0.03232247]
[1772983871478,0.00148,67145.0,67139.0,0.07447236]
[1772983871741,0.00148,67145.0,67140.0,0.03228085]
[1772983872949,0.00022001,67144.0,67140.0,0.03228085]
[1772983873446,0.00022001,67144.0,67140.0,0.10675149]
[1772983873656,0.00022001,67144.0,67141.0,0.03231975]
[1772983874098,0.00199931,67150.0,67141.0,0.03231975]
[1772983875286,0.00148,67149.0,67141.0,0.03231975]
[1772983875431,0.00148,67149.0,67142.0,0.07446903]
[1772983875628,0.08041986,67160.0,67144.0,0.12227935]
[1772983875844,0.00148,67155.0,67145.0,0.03227775]
[1772983876275,0.00597001,67160.0,67142.0,0.07446903]
[1772983876276,0.07444291,67166.0,67143.0,0.12227935]
[1772983876482,0.07444291,67166.0,67147.0,0.12227935]
[1772983876732,0.00148,67165.0,67150.0,0.0322356]
[1772983876930,0.00148,67164.0,67152.0,0.0322356]
[1772983877110,0.00148,67164.0,67154.0,0.0322356]
[1772983877311,0.00048961,67167.0,67154.0,0.0322356]
[1772983877312,0.00048961,67167.0,67155.0,0.0322356]
[1772983877515,0.00148,67166.0,67155.0,0.0322356]
[1772983877910,0.00148,67166.0,67157.0,0.0322356]
[1772983880096,0.07443468,67173.0,67161.0,0.12227935]
[1772983880303,0.0761366,67172.0,67158.0,0.07445129]
[1772983880662,0.0761366,67172.0,67152.0,0.07445794]
[1772983880663,0.12333917,67171.0,67152.0,0.07445794]
[1772983880877,0.00022001,67166.0,67152.0,0.07445794]
[1772983881072,0.00148,67165.0,67153.0,0.03228077]
[1772983882024,0.07465469,67173.0,67158.0,0.12227935]
[1772983882025,0.00022001,67173.0,67158.0,0.12227935]
[1772983882149,0.00022001,67173.0,67157.0,0.0744524]
[1772983882150,0.0001174,67172.0,67157.0,0.0744524]
[1772983882604,0.0001174,67172.0,67159.0,0.03223864]
[1772983882752,0.0001174,67172.0,67162.0,0.12227935]
[1772983882987,0.0001174,67172.0,67164.0,0.03223864]
[1772983883400,0.00188,67175.0,67164.0,0.12227935]
[1772983883614,0.00188,67175.0,67165.0,0.03223864]
[1772983884272,0.00199933,67175.0,67167.0,0.03223864]
[1772983884689,0.00051933,67175.0,67167.0,0.03223864]
[1772983884888,0.00015,67173.0,67169.0,0.12227935]
[1772983885130,1e-08,67177.0,67170.0,0.03249693]
[1772983886214,1e-08,67177.0,67171.0,0.10693381]
[1772983886643,1e-08,67177.0,67168.0,0.07443913]
[1772983886809,1e-08,67177.0,67168.0,0.07455846]
[1772983886982,1e-08,67177.0,67168.0,0.10701356]
[1772983888206,1e-08,67177.0,67166.0,0.07444212]
[1772983888440,0.00011928,67177.0,67166.0,0.07444212]
[1772983889049,0.12345845,67177.0,67165.0,0.07444242]
[1772983889198,0.12345845,67177.0,67162.0,0.07444617]
[1772983890022,0.00011928,67177.0,67162.0,0.07444617]
[1772983890246,0.00011928,67177.0,67166.0,0.0324137]
[1772983890430,0.07454968,67177.0,67167.0,0.0324137]
[1772983890631,0.07454968,67177.0,67168.0,0.03237095]
[1772983890849,0.00011928,67177.0,67168.0,0.03237095]
[1772983891301,0.07455022,67177.0,67165.0,0.07444353]
[1772983891513,0.19788939,67177.0,67165.0,0.07444353]
[1772983891983,0.19788939,67177.0,67168.0,0.001]
[1772983892986,0.19788939,67177.0,67165.0,0.07444353]
[1772983893139,0.00011928,67177.0,67166.0,0.032591]
[1772983893941,0.00148,67176.0,67166.0,0.032591]
[1772983895203,0.00159928,67177.0,67168.0,0.03254738]
[1772983895678,0.00011928,67177.0,67168.0,0.03254738]
[1772983897102,0.00011928,67177.0,67169.0,0.0744391]
[1772983897338,0.00011928,67177.0,67170.0,0.03250399]
[1772983899227,0.00011928,67177.0,67171.0,0.07443688]
[1772983899564,0.00011928,67177.0,67167.0,0.07444035]
[1772983900127,0.00148,67176.0,67167.0,0.07444035]
[1772983901347,0.00148,67176.0,67165.0,0.07444288]
[1772983901547,0.0759124,67176.0,67165.0,0.10686037]
[1772983901982,0.0759124,67176.0,67157.0,0.07465239]
[1772983902166,0.1164915,67175.0,67151.0,0.07445867]
[1772983902516,0.1164915,67175.0,67157.0,0.0002]
[1772983903483,0.1164915,67173.0,67157.0,0.0002]
[1772983903688,0.10635184,67169.0,67143.0,0.07466787]
[1772983903871,0.10635184,67169.0,67143.0,0.0002]
[1772983903872,0.00148,67168.0,67143.0,0.0002]
[1772983904212,0.1164915,67167.0,67143.0,0.0002]
[1772983904414,0.1164915,67165.0,67143.0,0.0002]
[1772983904741,0.00148,67168.0,67143.0,0.07466738]
[1772983904742,0.1164915,67163.0,67143.0,0.07466738]
[1772983904906,0.1164915,67159.0,67143.0,0.07466738]
[1772983905111,8.26e-05,67156.0,67141.0,0.07446987]
[1772983905425,0.1179715,67155.0,67141.0,0.07446987]
[1772983905643,0.07445572,67154.0,67141.0,0.07446987]
[1772983906018,0.07445572,67154.0,67141.0,0.10680596]
[1772983906222,0.07445572,67154.0,67141.0,0.07458918]
[1772983906424,0.07445572,67154.0,67142.0,0.03233609]
[1772983908194,0.07445018,67159.0,67144.0,0.03237739]
[1772983908398,0.07445018,67159.0,67146.0,0.03237739]
[1772983908399,0.00148,67158.0,67146.0,0.03237739]
[1772983908575,0.07445018,67159.0,67143.0,0.07446792]
[1772983908576,0.07445018,67159.0,67148.0,0.03237739]
[1772983908751,0.00148,67157.0,67148.0,0.03237739]
[1772983909246,0.00148,67157.0,67156.0,0.00015]
[1772983910063,0.00148,67161.0,67156.0,0.00015]
[1772983910658,0.00148,67160.0,67156.0,0.00015]
[1772983911107,0.07444464,67164.0,67156.0,0.00015]
[1772983911277,0.00148,67163.0,67156.0,0.00015]
[1772983911699,0.00148,67162.0,67156.0,0.00015]
[1772983912102,0.07444464,67164.0,67156.0,0.00015]
[1772983912320,0.00148,67163.0,67147.0,0.07446127]
[1772983912521,0.00148,67163.0,67148.0,0.0324598]
[1772983913439,0.07444464,67164.0,67148.0,0.0324598]
[1772983913440,0.00148,67162.0,67148.0,0.0324598]
[1772983914221,0.07444464,67165.0,67151.0,0.0324598]
[1772983914222,0.07444353,67165.0,67151.0,0.0324598]
[1772983914396,0.07444353,67165.0,67152.0,0.0324598]
[1772983914591,0.00148,67164.0,67152.0,0.0324598]
[1772983915017,0.07444353,67165.0,67152.0,0.0324598]
[1772983915242,0.00148,67163.0,67152.0,0.0324598]
[1772983915435,0.07444353,67165.0,67152.0,0.0324598]
[1772983915661,0.00148,67162.0,67152.0,0.0324598]
[1772983915863,0.07444353,67165.0,67152.0,0.0324598]
[1772983916165,0.00148,67161.0,67152.0,0.0324598]
[1772983916486,0.00148,67160.0,67154.0,0.03243993]
[1772983917712,0.00148,67161.0,67154.0,0.03243993]
[1772983918111,0.07444598,67163.0,67154.0,0.03243993]
[1772983918447,0.00148,67162.0,67156.0,0.03242003]
[1772983918611,0.07444598,67163.0,67156.0,0.03242003]
[1772983918811,0.00148,67162.0,67156.0,0.03242003]
[1772983919234,0.07483356,67175.0,67156.0,0.03242003]
[1772983919440,0.1164915,67173.0,67156.0,0.03239958]
[1772983920032,0.1164915,67171.0,67156.0,0.03239958]
[1772983920233,0.07443799,67170.0,67154.0,0.07445567]
[1772983920442,0.07443799,67170.0,67151.0,0.07445888]
[1772983920443,0.1164915,67169.0,67151.0,0.07445888]
[1772983922687,0.11478145,67167.0,67151.0,0.07445888]
[1772983922985,0.11626145,67166.0,67151.0,0.07445888]
[1772983923345,0.11626145,67166.0,67151.0,0.07465888]
[1772983924378,0.11626145,67166.0,67152.0,0.03236048]
[1772983924731,0.00148,67165.0,67153.0,0.07445683]
[1772983924969,0.00148,67165.0,67154.0,0.03233923]
[1772983925759,0.00148,67164.0,67154.0,0.03233923]
[1772983926344,0.00148,67163.0,67154.0,0.03233923]
[1772983926736,0.07444685,67162.0,67151.0,0.0002]
[1772983927502,0.07444685,67162.0,67151.0,0.03252706]
[1772983929260,0.07444685,67162.0,67152.0,0.07445794]
[1772983931512,0.07444685,67162.0,67149.0,0.1778319]
[1772983931715,0.11453224,67161.0,67146.0,0.07446427]
[1772983932036,0.00148,67160.0,67147.0,0.03229174]
[1772983932367,0.00148,67159.0,67147.0,0.03229174]
[1772983932569,0.00148,67159.0,67148.0,0.03226916]
[1772983933221,0.00148,67158.0,67150.0,0.03226916]
[1772983933438,0.00148,67158.0,67152.0,0.03226916]
[1772983933635,0.0744497,67160.0,67152.0,0.03226916]
[1772983933929,0.00148,67159.0,67152.0,0.03226916]
[1772983934130,0.0744497,67160.0,67152.0,0.03226916]
[1772983934340,0.00148,67159.0,67152.0,0.03226916]
[1772983934698,0.00022001,67169.0,67152.0,0.03226916]
[1772983934918,0.07606531,67173.0,67155.0,0.11416482]
[1772983935119,0.00148,67172.0,67159.0,0.03256045]
[1772983935320,0.07443688,67171.0,67162.0,0.07444685]
[1772983935526,0.07443688,67171.0,67160.0,0.1886131]
[1772983935527,0.07443688,67171.0,67160.0,0.07444828]
[1772983936279,0.07443688,67171.0,67160.0,0.10700873]
[1772983936578,0.07449609,67171.0,67160.0,0.10700873]
[1772983938344,0.07443688,67172.0,67161.0,0.11416482]
[1772983938541,0.00163,67173.0,67162.0,0.11416482]
[1772983938741,0.00163,67173.0,67164.0,0.0325137]
[1772983939579,0.00015,67173.0,67164.0,0.0325137]
[1772983939867,0.00163,67173.0,67164.0,0.0325137]
[1772983940410,0.00163,67173.0,67166.0,0.0325137]
[1772983940630,0.00015,67173.0,67166.0,0.0325137]
[1772983941895,0.07458498,67173.0,67165.0,0.07444353]
[1772983942100,0.18911722,67173.0,67165.0,0.07444353]
[1772983942298,0.18911722,67173.0,67164.0,0.07444353]
[1772983942724,0.18911722,67173.0,67162.0,0.07592575]
[1772983942725,0.11453224,67172.0,67162.0,0.07444575]
[1772983944792,0.11453224,67172.0,67161.0,0.07450606]
[1772983944793,0.07443688,67171.0,67161.0,0.07450606]
[1772983947366,0.07443688,67171.0,67161.0,0.10705136]
[1772983947739,0.07443688,67171.0,67162.0,0.0002]
[1772983947932,0.07443688,67171.0,67162.0,0.0327453]
[1772983948136,0.00148,67170.0,67162.0,0.0327453]
[1772983948554,0.07591882,67170.0,67162.0,0.0002]
[1772983948952,0.07591873,67170.0,67162.0,0.0002]
[1772983949156,0.07591867,67170.0,67162.0,0.0002]
[1772983949495,0.00148,67170.0,67162.0,0.0002]
[1772983950261,0.00148,67169.0,67162.0,0.03271912]
[1772983950437,0.00148,67174.0,67164.0,0.11416482]
[1772983950642,0.00148,67174.0,67167.0,0.03249281]
[1772983951465,0.07443274,67175.0,67167.0,0.03249281]
[1772983951688,0.00148,67174.0,67167.0,0.03249281]
[1772983953438,0.00148,67177.0,67169.0,0.03246637]
[1772983954677,0.00148,67181.0,67170.0,0.12010965]
[1772983954874,0.00148,67181.0,67173.0,0.03245158]
[1772983955259,0.00148,67181.0,67175.0,0.03245158]
[1772983955466,0.07441899,67188.0,67175.0,0.03245158]
[1772983955467,0.07440942,67196.0,67176.0,0.12010965]
[1772983955665,0.0012,67200.0,67175.0,0.00148]
[1772983955666,0.00148,67197.0,67180.0,0.12010965]
[1772983956013,0.07560479,67200.0,67185.0,0.03245158]
[1772983956014,0.0012,67200.0,67185.0,0.03245158]
[1772983956167,0.00148,67199.0,67188.0,0.12010965]
[1772983956380,0.00148,67199.0,67190.0,0.03245158]
[1772983956727,0.0016517,67201.0,67192.0,0.03242824]
[1772983956863,0.0001717,67201.0,67192.0,0.03242824]
[1772983957057,0.00148,67200.0,67192.0,0.03242824]
[1772983957267,0.00148,67200.0,67193.0,0.07441251]
[1772983957448,0.00204968,67201.0,67194.0,0.03242824]
[1772983957652,0.07645421,67201.0,67192.0,0.07441251]
[1772983958282,0.00022001,67195.0,67192.0,0.07441251]
[1772983958517,0.00022001,67195.0,67193.0,0.03242824]
[1772983959463,0.00022001,67195.0,67193.0,0.10684021]
[1772983959650,0.00022001,67195.0,67194.0,0.03289504]
[1772983961207,0.00022001,67195.0,67194.0,0.03274504]
[1772983962441,0.0746308,67195.0,67188.0,0.07441805]
[1772983962678,0.0746308,67195.0,67180.0,0.0744269]
[1772983962806,0.0746308,67195.0,67181.0,0.07442519]
[1772983963015,0.0746308,67195.0,67181.0,0.10848711]
[1772983963406,0.0746308,67195.0,67182.0,0.03258192]
[1772983965118,0.00022001,67195.0,67184.0,0.12010965]
[1772983965296,0.00022001,67195.0,67186.0,0.03283256]
[1772983966295,0.00022001,67195.0,67186.0,0.12010965]
[1772983966465,0.00022001,67195.0,67187.0,0.03283256]
[1772983969105,0.00022001,67195.0,67188.0,0.07441805]
[1772983969354,0.00148,67197.0,67189.0,0.03287925]
[1772983969668,0.00148,67199.0,67191.0,0.03287925]
[1772983970001,0.07497352,67201.0,67191.0,0.03287925]
[1772983970305,0.00148,67200.0,67191.0,0.03287925]
[1772983970505,0.07497352,67201.0,67191.0,0.03287925]
[1772983970753,0.00148,67200.0,67191.0,0.03287925]
[1772983971171,0.00148,67199.0,67192.0,0.07441362]
[1772983971423,0.07588631,67199.0,67192.0,0.10728631]
[1772983971642,0.07588631,67199.0,67192.0,0.03287269]
[1772983973688,0.07588631,67199.0,67192.0,0.10728561]
[1772983974960,0.07588631,67199.0,67192.0,0.10724561]
[1772983980815,0.07588631,67199.0,67192.0,0.07441292]
[1772983981591,0.19151906,67199.0,67186.0,0.0002]
[1772983981761,0.19173907,67199.0,67186.0,0.0002]
[1772983982169,0.19173907,67199.0,67186.0,0.03303449]
[1772983984248,0.19173907,67199.0,67187.0,0.07441915]
[1772983984630,0.19173907,67199.0,67187.0,0.10724381]
[1772983984845,0.00148,67200.0,67189.0,0.11303542]
[1772983985014,0.00148,67200.0,67190.0,0.03281433]